[Event "Late-Titled-Tuesday-Blitz-December-26-2023"]
[Site "Chess.com"]
[Date "2023.12.26"]
[Round "4"]
[White "Iball95"]
[Black "DCacheiro"]
[Result "1-0"]
[WhiteElo "2821"]
[BlackElo "2545"]
[TimeControl "180+1"]
[EndTime "14:36:51 PST"]
[Termination "Iball95 won by resignation"]

1. e4 {[%clk 0:02:57.8]} 1... e5 {[%clk 0:02:58.7]} 2. Nf3 {[%clk 0:02:57.9]}
2... Nc6 {[%clk 0:02:59.2]} 3. Nc3 {[%clk 0:02:58.4]} 3... Nf6 {[%clk
0:02:59.2]} 4. Bb5 {[%clk 0:02:58.7]} 4... Nd4 {[%clk 0:02:56.2]} 5. Nxd4 {[%clk
0:02:58.6]} 5... exd4 {[%clk 0:02:57.1]} 6. e5 {[%clk 0:02:59.5]} 6... dxc3
{[%clk 0:02:55.7]} 7. exf6 {[%clk 0:03:00.4]} 7... Qxf6 {[%clk 0:02:54.2]} 8.
dxc3 {[%clk 0:03:00.9]} 8... Bc5 {[%clk 0:02:46.2]} 9. O-O {[%clk 0:03:00.5]}
9... O-O {[%clk 0:02:45.7]} 10. Bd3 {[%clk 0:02:58.9]} 10... d5 {[%clk
0:02:39.3]} 11. Qh5 {[%clk 0:02:57.3]} 11... h6 {[%clk 0:02:25.2]} 12. Qxd5
{[%clk 0:02:56.3]} 12... Bb6 {[%clk 0:02:17.8]} 13. Qe4 {[%clk 0:02:54]} 13...
g6 {[%clk 0:02:01]} 14. Bxh6 {[%clk 0:02:51.5]} 14... Bf5 {[%clk 0:02:00.8]} 15.
Qf3 {[%clk 0:02:26.9]} 15... Rfe8 {[%clk 0:01:57.6]} 16. Bxf5 {[%clk 0:02:22.9]}
16... Qxf5 {[%clk 0:01:58.5]} 17. Qxf5 {[%clk 0:02:22.7]} 17... gxf5 {[%clk
0:01:59.4]} 18. Rfe1 {[%clk 0:02:21.6]} 18... Kh7 {[%clk 0:01:57]} 19. Bf4
{[%clk 0:02:19.6]} 19... Rad8 {[%clk 0:01:55.4]} 20. Kf1 {[%clk 0:02:18.2]}
20... Kg6 {[%clk 0:01:55]} 21. Rxe8 {[%clk 0:02:17.1]} 21... Rxe8 {[%clk
0:01:55.3]} 22. Re1 {[%clk 0:02:17.6]} 22... Rd8 {[%clk 0:01:51.1]} 23. h3
{[%clk 0:02:17.1]} 23... Kf6 {[%clk 0:01:48.5]} 24. g3 {[%clk 0:02:14.6]} 24...
Rd5 {[%clk 0:01:45.7]} 25. h4 {[%clk 0:02:08.9]} 25... c6 {[%clk 0:01:40.1]} 26.
a4 {[%clk 0:02:01.9]} 26... a5 {[%clk 0:01:39.4]} 27. b3 {[%clk 0:01:59.5]}
27... Rd7 {[%clk 0:01:35.8]} 28. c4 {[%clk 0:01:58.9]} 28... Bd4 {[%clk
0:01:34.2]} 29. Rd1 {[%clk 0:01:57.8]} 29... Ke6 {[%clk 0:01:32.9]} 30. Be3
{[%clk 0:01:57.6]} 30... c5 {[%clk 0:01:26.6]} 31. Ke2 {[%clk 0:01:56.2]} 31...
b6 {[%clk 0:01:03.5]} 32. Bxd4 {[%clk 0:01:50.3]} 32... cxd4 {[%clk 0:01:04.4]}
33. c3 {[%clk 0:01:49.7]} 1-0

[Event "Late-Titled-Tuesday-Blitz-December-26-2023"]
[Site "Chess.com"]
[Date "2023.12.26"]
[Round "4"]
[White "pedromartinez91"]
[Black "chegueps"]
[Result "1-0"]
[WhiteElo "2558"]
[BlackElo "2767"]
[TimeControl "180+1"]
[EndTime "14:36:57 PST"]
[Termination "pedromartinez91 won by resignation"]

1. Nf3 {[%clk 0:01:38]} 1... Nf6 {[%clk 0:03:00.9]} 2. g3 {[%clk 0:01:37.7]}
2... g6 {[%clk 0:02:59.1]} 3. Bg2 {[%clk 0:01:38]} 3... Bg7 {[%clk 0:03:00]} 4.
O-O {[%clk 0:01:38.7]} 4... O-O {[%clk 0:03:00.9]} 5. d3 {[%clk 0:01:38.5]} 5...
d6 {[%clk 0:03:01.8]} 6. e4 {[%clk 0:01:37.9]} 6... e5 {[%clk 0:03:01.2]} 7.
Nbd2 {[%clk 0:01:34.9]} 7... c6 {[%clk 0:02:58.4]} 8. c3 {[%clk 0:01:34.2]} 8...
Nbd7 {[%clk 0:02:57.6]} 9. Re1 {[%clk 0:01:34.5]} 9... a5 {[%clk 0:02:48.6]} 10.
a4 {[%clk 0:01:34.6]} 10... h6 {[%clk 0:02:45]} 11. Nc4 {[%clk 0:01:34.8]} 11...
Ne8 {[%clk 0:02:42.8]} 12. d4 {[%clk 0:01:34.5]} 12... exd4 {[%clk 0:02:26.9]}
13. Nxd4 {[%clk 0:01:35.4]} 13... Nc5 {[%clk 0:02:25]} 14. Bf4 {[%clk
0:01:34.5]} 14... g5 {[%clk 0:02:23.5]} 15. Be3 {[%clk 0:01:33.7]} 15... Ne6
{[%clk 0:02:23.6]} 16. Nf5 {[%clk 0:01:33.3]} 16... Qf6 {[%clk 0:02:08.9]} 17.
Ncxd6 {[%clk 0:00:59.9]} 17... Nxd6 {[%clk 0:02:08.6]} 18. Qxd6 {[%clk
0:01:00.8]} 18... Rd8 {[%clk 0:02:08]} 19. Qe7 {[%clk 0:00:49.3]} 19... Qxe7
{[%clk 0:02:01.2]} 20. Nxe7+ {[%clk 0:00:50.2]} 20... Kh7 {[%clk 0:01:54.4]} 21.
Rad1 {[%clk 0:00:44.7]} 21... Bd7 {[%clk 0:01:53.3]} 22. Bb6 {[%clk 0:00:43.5]}
22... Be8 {[%clk 0:01:48.1]} 23. Bxd8 {[%clk 0:00:42.3]} 23... Rxd8 {[%clk
0:01:49]} 24. Rxd8 {[%clk 0:00:41.3]} 24... Nxd8 {[%clk 0:01:49.9]} 25. Nf5
{[%clk 0:00:40.8]} 25... Bf8 {[%clk 0:01:50]} 26. Rd1 {[%clk 0:00:38.1]} 26...
Ne6 {[%clk 0:01:50.4]} 27. Bf1 {[%clk 0:00:35.9]} 27... Nc5 {[%clk 0:01:48]} 28.
Rd8 {[%clk 0:00:35.6]} 1-0

[Event "Late-Titled-Tuesday-Blitz-December-26-2023"]
[Site "Chess.com"]
[Date "2023.12.26"]
[Round "4"]
[White "GABUZYAN_CHESSMOOD"]
[Black "djano"]
[Result "1-0"]
[WhiteElo "2899"]
[BlackElo "2646"]
[TimeControl "180+1"]
[EndTime "14:36:59 PST"]
[Termination "GABUZYAN_CHESSMOOD won by checkmate"]

1. e4 {[%clk 0:03:00.9]} 1... c5 {[%clk 0:02:57.9]} 2. Nc3 {[%clk 0:03:00.7]}
2... Nc6 {[%clk 0:02:55.6]} 3. Bb5 {[%clk 0:03:00.9]} 3... Nd4 {[%clk
0:02:53.9]} 4. Bc4 {[%clk 0:03:01.3]} 4... e6 {[%clk 0:02:52.2]} 5. Nge2 {[%clk
0:03:01.6]} 5... a6 {[%clk 0:02:50.9]} 6. a4 {[%clk 0:03:01]} 6... Qc7 {[%clk
0:02:40.1]} 7. O-O {[%clk 0:02:58.5]} 7... Nf6 {[%clk 0:02:40.3]} 8. d3 {[%clk
0:02:56.2]} 8... d6 {[%clk 0:02:21.3]} 9. Ba2 {[%clk 0:02:51.3]} 9... Be7 {[%clk
0:02:18.4]} 10. Nxd4 {[%clk 0:02:51.2]} 10... cxd4 {[%clk 0:02:18.5]} 11. Ne2
{[%clk 0:02:52.1]} 11... e5 {[%clk 0:02:18.5]} 12. Ng3 {[%clk 0:02:40.6]} 12...
O-O {[%clk 0:02:11.7]} 13. h3 {[%clk 0:02:27.9]} 13... Bd7 {[%clk 0:02:02.2]}
14. Bb3 {[%clk 0:02:24.8]} 14... Rac8 {[%clk 0:02:01.6]} 15. f4 {[%clk
0:02:21.4]} 15... Be6 {[%clk 0:02:01.2]} 16. Qf3 {[%clk 0:02:09.3]} 16... Nd7
{[%clk 0:01:49.6]} 17. Bxe6 {[%clk 0:02:03.7]} 17... fxe6 {[%clk 0:01:50.1]} 18.
Qg4 {[%clk 0:02:04]} 18... Rf6 {[%clk 0:01:44.3]} 19. f5 {[%clk 0:01:59.6]}
19... Qxc2 {[%clk 0:00:56.3]} 20. Nh5 {[%clk 0:01:54.2]} 20... Rf7 {[%clk
0:00:56.7]} 21. Bh6 {[%clk 0:01:46.9]} 21... exf5 {[%clk 0:00:55.6]} 22. Rxf5
{[%clk 0:01:41.2]} 22... g6 {[%clk 0:00:36.6]} 23. Rxf7 {[%clk 0:01:41]} 23...
Kxf7 {[%clk 0:00:37]} 24. Qxd7 {[%clk 0:01:41.1]} 24... gxh5 {[%clk 0:00:34.4]}
25. Rf1+ {[%clk 0:01:40.6]} 25... Kg6 {[%clk 0:00:33]} 26. Qe6+ {[%clk
0:01:40.7]} 26... Bf6 {[%clk 0:00:32.1]} 27. Rxf6# {[%clk 0:01:39.4]} 1-0

[Event "Late-Titled-Tuesday-Blitz-December-26-2023"]
[Site "Chess.com"]
[Date "2023.12.26"]
[Round "4"]
[White "Predator0608"]
[Black "Greguer"]
[Result "0-1"]
[WhiteElo "2524"]
[BlackElo "2435"]
[TimeControl "180+1"]
[EndTime "14:37:08 PST"]
[Termination "Greguer won by resignation"]

1. f4 {[%clk 0:03:00.9]} 1... d5 {[%clk 0:02:58.8]} 2. Nf3 {[%clk 0:03:00.6]}
2... Nf6 {[%clk 0:02:59.1]} 3. g3 {[%clk 0:03:01]} 3... g6 {[%clk 0:02:59.8]} 4.
Bg2 {[%clk 0:03:01.4]} 4... Bg7 {[%clk 0:03:00.5]} 5. O-O {[%clk 0:03:02.3]}
5... O-O {[%clk 0:03:00.9]} 6. d3 {[%clk 0:03:03.2]} 6... c5 {[%clk 0:02:59.4]}
7. Qe1 {[%clk 0:03:04.1]} 7... Nc6 {[%clk 0:02:59]} 8. e4 {[%clk 0:03:04.3]}
8... e6 {[%clk 0:02:51.5]} 9. e5 {[%clk 0:02:57.8]} 9... Ne8 {[%clk 0:02:46.4]}
10. g4 {[%clk 0:02:57.5]} 10... f6 {[%clk 0:02:43.6]} 11. exf6 {[%clk 0:02:33]}
11... Bxf6 {[%clk 0:02:41.5]} 12. Bh3 {[%clk 0:02:30.6]} 12... Bg7 {[%clk
0:02:29.5]} 13. c3 {[%clk 0:01:54.6]} 13... Nd6 {[%clk 0:02:13.5]} 14. Nbd2
{[%clk 0:01:30.5]} 14... Bd7 {[%clk 0:02:04]} 15. Rf2 {[%clk 0:01:29.4]} 15...
Qc7 {[%clk 0:01:57.9]} 16. Nf1 {[%clk 0:01:28.9]} 16... Rae8 {[%clk 0:01:56.9]}
17. Ng3 {[%clk 0:01:17.7]} 17... e5 {[%clk 0:01:48.9]} 18. fxe5 {[%clk
0:01:12.7]} 18... Nxe5 {[%clk 0:01:46.3]} 19. Nxe5 {[%clk 0:01:12.1]} 19... Rxf2
{[%clk 0:01:23.3]} 20. Qxf2 {[%clk 0:01:09.3]} 20... Bxe5 {[%clk 0:01:22.4]} 21.
Be3 {[%clk 0:01:03.3]} 21... Rf8 {[%clk 0:01:15.4]} 22. Qg2 {[%clk 0:00:59.1]}
22... d4 {[%clk 0:01:13.1]} 23. cxd4 {[%clk 0:00:51.8]} 23... cxd4 {[%clk
0:01:13.2]} 24. Bxd4 {[%clk 0:00:49.9]} 24... Bxd4+ {[%clk 0:01:11.1]} 0-1

[Event "Late-Titled-Tuesday-Blitz-December-26-2023"]
[Site "Chess.com"]
[Date "2023.12.26"]
[Round "4"]
[White "rrgchessmaster05"]
[Black "greekplayer1"]
[Result "0-1"]
[WhiteElo "2516"]
[BlackElo "2722"]
[TimeControl "180+1"]
[EndTime "14:37:17 PST"]
[Termination "greekplayer1 won by resignation"]

1. d4 {[%clk 0:01:18.6]} 1... Nf6 {[%clk 0:02:46.1]} 2. Nf3 {[%clk 0:01:18.2]}
2... e6 {[%clk 0:02:24.9]} 3. c4 {[%clk 0:01:18.1]} 3... c5 {[%clk 0:02:25.5]}
4. d5 {[%clk 0:01:18.4]} 4... exd5 {[%clk 0:02:26.4]} 5. cxd5 {[%clk 0:01:18.9]}
5... d6 {[%clk 0:02:27.1]} 6. Nc3 {[%clk 0:01:19.5]} 6... g6 {[%clk 0:02:27.8]}
7. h3 {[%clk 0:01:19.5]} 7... Bg7 {[%clk 0:02:28.7]} 8. e4 {[%clk 0:01:19.8]}
8... O-O {[%clk 0:02:29.3]} 9. Nd2 {[%clk 0:01:20.4]} 9... Re8 {[%clk
0:02:28.4]} 10. Be2 {[%clk 0:01:20.9]} 10... Nbd7 {[%clk 0:02:27.4]} 11. O-O
{[%clk 0:01:20.6]} 11... a6 {[%clk 0:02:25.4]} 12. a4 {[%clk 0:01:19.7]} 12...
Rb8 {[%clk 0:02:24.5]} 13. a5 {[%clk 0:01:20.3]} 13... h5 {[%clk 0:02:18.3]} 14.
Re1 {[%clk 0:01:18.4]} 14... Nh7 {[%clk 0:02:13.1]} 15. Qc2 {[%clk 0:01:15.2]}
15... Ndf8 {[%clk 0:02:00.1]} 16. Nc4 {[%clk 0:01:15]} 16... Ng5 {[%clk
0:01:49.2]} 17. f4 {[%clk 0:00:54.1]} 17... Nxh3+ {[%clk 0:01:46.8]} 18. gxh3
{[%clk 0:00:53]} 18... Qh4 {[%clk 0:01:47.4]} 19. Bf3 {[%clk 0:00:41.6]} 19...
Qxe1+ {[%clk 0:01:43.4]} 20. Kg2 {[%clk 0:00:40.9]} 20... Qh4 {[%clk 0:01:40.9]}
21. f5 {[%clk 0:00:38.5]} 21... gxf5 {[%clk 0:01:36.6]} 22. Nxd6 {[%clk
0:00:27.7]} 22... f4 {[%clk 0:01:32.8]} 23. Nxc8 {[%clk 0:00:15.1]} 23... Qg3+
{[%clk 0:01:32.2]} 0-1

[Event "Late-Titled-Tuesday-Blitz-December-26-2023"]
[Site "Chess.com"]
[Date "2023.12.26"]
[Round "4"]
[White "ATM622"]
[Black "Sanyura"]
[Result "0-1"]
[WhiteElo "2412"]
[BlackElo "2617"]
[TimeControl "180+1"]
[EndTime "14:37:21 PST"]
[Termination "Sanyura won by resignation"]

1. d4 {[%clk 0:03:00.9]} 1... Nf6 {[%clk 0:02:59.5]} 2. c4 {[%clk 0:03:00.7]}
2... g6 {[%clk 0:02:56.7]} 3. g3 {[%clk 0:03:00.6]} 3... Bg7 {[%clk 0:02:57.1]}
4. Bg2 {[%clk 0:03:00.6]} 4... O-O {[%clk 0:02:57.8]} 5. Nf3 {[%clk 0:02:58.9]}
5... d6 {[%clk 0:02:58.5]} 6. O-O {[%clk 0:02:59.1]} 6... Nbd7 {[%clk
0:02:59.1]} 7. Nc3 {[%clk 0:02:59.3]} 7... e5 {[%clk 0:02:59.8]} 8. dxe5 {[%clk
0:02:54.4]} 8... dxe5 {[%clk 0:02:59.9]} 9. b3 {[%clk 0:02:46]} 9... Qe7 {[%clk
0:02:58.5]} 10. Bb2 {[%clk 0:02:42.8]} 10... c6 {[%clk 0:02:58.3]} 11. Qc2
{[%clk 0:02:40]} 11... Nc5 {[%clk 0:02:54.4]} 12. Ng5 {[%clk 0:02:29.3]} 12...
Bf5 {[%clk 0:02:53]} 13. Nge4 {[%clk 0:02:24.6]} 13... Nfxe4 {[%clk 0:02:41.9]}
14. Nxe4 {[%clk 0:02:23.4]} 14... Nxe4 {[%clk 0:02:37.1]} 15. Bxe4 {[%clk
0:02:22.4]} 15... Bxe4 {[%clk 0:02:37]} 16. Qxe4 {[%clk 0:02:22.5]} 16... f5
{[%clk 0:02:37.9]} 17. Qc2 {[%clk 0:02:21.5]} 17... h5 {[%clk 0:02:33.4]} 18. h4
{[%clk 0:02:07.8]} 18... Kh7 {[%clk 0:02:32.3]} 19. Rad1 {[%clk 0:01:52]} 19...
f4 {[%clk 0:02:31.2]} 20. Kg2 {[%clk 0:01:50.8]} 20... Rf5 {[%clk 0:02:30.3]}
21. Qd3 {[%clk 0:01:20.4]} 21... Raf8 {[%clk 0:02:29]} 22. Qd7 {[%clk
0:01:17.5]} 22... Qc5 {[%clk 0:02:08.4]} 23. e4 {[%clk 0:00:58.2]} 23... fxe3
{[%clk 0:02:00.3]} 24. fxe3 {[%clk 0:00:36.2]} 24... Qxe3 {[%clk 0:01:59.9]} 25.
Rxf5 {[%clk 0:00:17.2]} 25... Qe2+ {[%clk 0:01:59.7]} 26. Kh1 {[%clk 0:00:06.6]}
26... Rxf5 {[%clk 0:01:59.4]} 27. Ba1 {[%clk 0:00:04.3]} 27... Rf2 {[%clk
0:01:52.9]} 28. Qh3 {[%clk 0:00:01.5]} 0-1

[Event "Late-Titled-Tuesday-Blitz-December-26-2023"]
[Site "Chess.com"]
[Date "2023.12.26"]
[Round "4"]
[White "hangemhigh"]
[Black "Nick12772"]
[Result "1-0"]
[WhiteElo "2468"]
[BlackElo "2307"]
[TimeControl "180+1"]
[EndTime "14:37:23 PST"]
[Termination "hangemhigh won by resignation"]

1. d4 {[%clk 0:03:00.9]} 1... Nf6 {[%clk 0:03:00]} 2. Nc3 {[%clk 0:02:57]} 2...
e6 {[%clk 0:02:59.8]} 3. e4 {[%clk 0:02:55]} 3... d5 {[%clk 0:02:59.9]} 4. Bg5
{[%clk 0:02:54.6]} 4... Bb4 {[%clk 0:02:59.8]} 5. e5 {[%clk 0:02:54.1]} 5... h6
{[%clk 0:03:00.2]} 6. Be3 {[%clk 0:02:53.9]} 6... Ne4 {[%clk 0:02:59.4]} 7. Qg4
{[%clk 0:02:54.3]} 7... Kf8 {[%clk 0:02:44.3]} 8. Ne2 {[%clk 0:02:50.9]} 8... c5
{[%clk 0:02:37.2]} 9. dxc5 {[%clk 0:02:47.6]} 9... Qa5 {[%clk 0:02:34.1]} 10.
O-O-O {[%clk 0:02:32.4]} 10... Bxc3 {[%clk 0:02:23.4]} 11. Nxc3 {[%clk
0:02:31.8]} 11... Nxc3 {[%clk 0:02:22]} 12. bxc3 {[%clk 0:02:31.9]} 12... Qxa2
{[%clk 0:02:07.2]} 13. Bd3 {[%clk 0:02:29.3]} 13... Nd7 {[%clk 0:01:56.6]} 14.
Qd4 {[%clk 0:02:01.3]} 14... Qa5 {[%clk 0:01:28.4]} 15. Kd2 {[%clk 0:01:58.2]}
15... Qc7 {[%clk 0:01:28.5]} 16. f4 {[%clk 0:01:55.4]} 16... b6 {[%clk
0:01:28.7]} 17. cxb6 {[%clk 0:01:53]} 17... axb6 {[%clk 0:01:19.8]} 18. Ra1
{[%clk 0:01:52.1]} 18... Rb8 {[%clk 0:01:05.1]} 19. Qb4+ {[%clk 0:01:42.8]}
19... Kg8 {[%clk 0:01:03.9]} 20. Qe7 {[%clk 0:01:42]} 20... g6 {[%clk
0:00:46.3]} 21. h4 {[%clk 0:01:27.3]} 21... h5 {[%clk 0:00:40.9]} 22. Rh3 {[%clk
0:01:13.8]} 22... Kg7 {[%clk 0:00:40.2]} 23. Rg3 {[%clk 0:01:10.7]} 23... Qd8
{[%clk 0:00:35.2]} 24. Rxg6+ {[%clk 0:01:07.3]} 1-0

[Event "Late-Titled-Tuesday-Blitz-December-26-2023"]
[Site "Chess.com"]
[Date "2023.12.26"]
[Round "4"]
[White "aranibos"]
[Black "NovakRatko"]
[Result "0-1"]
[WhiteElo "2156"]
[BlackElo "2435"]
[TimeControl "180+1"]
[EndTime "14:37:27 PST"]
[Termination "NovakRatko won by resignation"]

1. d4 {[%clk 0:02:59.5]} 1... d5 {[%clk 0:02:59.8]} 2. Nf3 {[%clk 0:02:58.7]}
2... c5 {[%clk 0:03:00.1]} 3. c3 {[%clk 0:02:57.7]} 3... cxd4 {[%clk 0:03:00.3]}
4. cxd4 {[%clk 0:02:57.7]} 4... Nc6 {[%clk 0:03:01]} 5. Nc3 {[%clk 0:02:58.1]}
5... f6 {[%clk 0:03:01.6]} 6. e4 {[%clk 0:02:45.3]} 6... dxe4 {[%clk 0:02:58.1]}
7. Nxe4 {[%clk 0:02:45.8]} 7... e5 {[%clk 0:02:52.2]} 8. d5 {[%clk 0:02:28.6]}
8... Bb4+ {[%clk 0:02:50.9]} 9. Nc3 {[%clk 0:02:28.2]} 9... Nce7 {[%clk
0:02:42.7]} 10. Qa4+ {[%clk 0:02:26.9]} 10... Nc6 {[%clk 0:02:08.8]} 11. dxc6
{[%clk 0:02:25.6]} 11... Bxc3+ {[%clk 0:02:09.2]} 12. bxc3 {[%clk 0:02:24.5]}
12... bxc6 {[%clk 0:02:09.9]} 13. Bc4 {[%clk 0:02:19.1]} 13... Bd7 {[%clk
0:02:06.2]} 14. O-O {[%clk 0:02:15.9]} 14... Ne7 {[%clk 0:01:59.4]} 15. Rd1
{[%clk 0:02:03.7]} 15... Nd5 {[%clk 0:01:58.2]} 16. Ba3 {[%clk 0:01:42.1]} 16...
Kf7 {[%clk 0:01:57.4]} 17. Rxd5 {[%clk 0:01:37.4]} 17... cxd5 {[%clk 0:01:56]}
18. Bxd5+ {[%clk 0:01:38]} 18... Kg6 {[%clk 0:01:52]} 19. Bxa8 {[%clk
0:01:33.7]} 19... Bxa4 {[%clk 0:01:50.2]} 20. Be4+ {[%clk 0:01:31.5]} 20... Kh6
{[%clk 0:01:44.8]} 21. Re1 {[%clk 0:01:16.7]} 21... g6 {[%clk 0:01:40.5]} 22. g4
{[%clk 0:01:15.7]} 22... Re8 {[%clk 0:01:30.4]} 23. Re2 {[%clk 0:01:06.3]} 23...
Qd7 {[%clk 0:01:29.8]} 24. h3 {[%clk 0:01:04.3]} 24... Bc6 {[%clk 0:01:20.4]}
25. Rd2 {[%clk 0:00:58.9]} 25... Qb7 {[%clk 0:01:14.9]} 26. Bxc6 {[%clk
0:00:56.6]} 26... Qxc6 {[%clk 0:01:14.3]} 27. Bc1 {[%clk 0:00:57.3]} 27... Kg7
{[%clk 0:01:05.8]} 28. Ne1 {[%clk 0:00:56.5]} 28... Qxc3 {[%clk 0:01:02.8]} 29.
Rc2 {[%clk 0:00:56]} 29... Qxe1+ {[%clk 0:01:02]} 0-1

[Event "Late-Titled-Tuesday-Blitz-December-26-2023"]
[Site "Chess.com"]
[Date "2023.12.26"]
[Round "4"]
[White "Gyulamiryan-koryun"]
[Black "Viktor_Poddubnyi"]
[Result "0-1"]
[WhiteElo "2028"]
[BlackElo "2292"]
[TimeControl "180+1"]
[EndTime "14:37:34 PST"]
[Termination "Viktor_Poddubnyi won by resignation"]

1. e4 {[%clk 0:02:57.2]} 1... g6 {[%clk 0:03:00.4]} 2. d4 {[%clk 0:02:56.4]}
2... Bg7 {[%clk 0:03:01]} 3. f4 {[%clk 0:02:57]} 3... d6 {[%clk 0:03:00.7]} 4.
Nf3 {[%clk 0:02:57]} 4... Nf6 {[%clk 0:03:01.1]} 5. Bd3 {[%clk 0:02:53.5]} 5...
O-O {[%clk 0:02:59.9]} 6. O-O {[%clk 0:02:53.2]} 6... Nc6 {[%clk 0:03:00]} 7. c3
{[%clk 0:02:52.9]} 7... e5 {[%clk 0:02:58.9]} 8. fxe5 {[%clk 0:02:52.7]} 8...
dxe5 {[%clk 0:02:58.7]} 9. d5 {[%clk 0:02:52.7]} 9... Ne7 {[%clk 0:02:56.3]} 10.
c4 {[%clk 0:02:51.5]} 10... Ne8 {[%clk 0:02:55]} 11. Nc3 {[%clk 0:02:51.1]}
11... b6 {[%clk 0:02:50.9]} 12. Be3 {[%clk 0:02:51]} 12... Nd6 {[%clk
0:02:48.9]} 13. Qd2 {[%clk 0:02:47.6]} 13... f5 {[%clk 0:02:34.4]} 14. Bh6
{[%clk 0:02:42.5]} 14... f4 {[%clk 0:02:28.8]} 15. Bxg7 {[%clk 0:02:41.8]} 15...
Kxg7 {[%clk 0:02:29.7]} 16. Nxe5 {[%clk 0:02:28.4]} 16... g5 {[%clk 0:02:23.7]}
17. Be2 {[%clk 0:02:22.6]} 17... Qe8 {[%clk 0:01:52.4]} 18. b3 {[%clk
0:02:21.8]} 18... Nef5 {[%clk 0:01:40.6]} 19. Ng4 {[%clk 0:02:13.2]} 19... Nxe4
{[%clk 0:01:33.7]} 20. Qd4+ {[%clk 0:02:08.4]} 20... Nxd4 {[%clk 0:01:31.6]} 21.
Bd3 {[%clk 0:01:59]} 21... Nxc3 {[%clk 0:01:29.3]} 22. Nf2 {[%clk 0:01:43.9]}
22... Bf5 {[%clk 0:01:25.3]} 23. Rfe1 {[%clk 0:01:32.3]} 23... Qf7 {[%clk
0:01:21.4]} 24. Re5 {[%clk 0:01:26.4]} 24... Rae8 {[%clk 0:01:10.9]} 25. Rae1
{[%clk 0:01:13.5]} 25... Rxe5 {[%clk 0:01:05.5]} 26. Rxe5 {[%clk 0:01:12.6]}
26... Re8 {[%clk 0:01:04.9]} 27. Rxe8 {[%clk 0:01:09.7]} 27... Qxe8 {[%clk
0:01:04.5]} 28. h3 {[%clk 0:01:07.4]} 28... Bxd3 {[%clk 0:01:03.4]} 29. Nxd3
{[%clk 0:01:06.3]} 29... Qe3+ {[%clk 0:01:03.3]} 30. Nf2 {[%clk 0:01:00.2]}
30... Nce2+ {[%clk 0:01:03.1]} 0-1

[Event "Late-Titled-Tuesday-Blitz-December-26-2023"]
[Site "Chess.com"]
[Date "2023.12.26"]
[Round "4"]
[White "Shankland"]
[Black "karinachess1"]
[Result "1-0"]
[WhiteElo "2933"]
[BlackElo "2562"]
[TimeControl "180+1"]
[EndTime "14:37:35 PST"]
[Termination "Shankland won by resignation"]

1. d4 {[%clk 0:03:00.9]} 1... Nf6 {[%clk 0:02:59.9]} 2. c4 {[%clk 0:03:01.1]}
2... e6 {[%clk 0:03:00.3]} 3. Nf3 {[%clk 0:03:01.5]} 3... d5 {[%clk 0:03:00.8]}
4. Nc3 {[%clk 0:03:01.8]} 4... Be7 {[%clk 0:02:59.5]} 5. Qc2 {[%clk 0:02:58.1]}
5... O-O {[%clk 0:02:50]} 6. Bg5 {[%clk 0:02:58.1]} 6... c5 {[%clk 0:02:48.5]}
7. cxd5 {[%clk 0:02:54.5]} 7... exd5 {[%clk 0:02:42.4]} 8. e3 {[%clk 0:02:53.2]}
8... Nc6 {[%clk 0:02:38.4]} 9. dxc5 {[%clk 0:02:52.8]} 9... h6 {[%clk
0:02:23.4]} 10. Bh4 {[%clk 0:02:31.1]} 10... Bxc5 {[%clk 0:02:20.4]} 11. Rd1
{[%clk 0:02:30.1]} 11... Be6 {[%clk 0:02:17.8]} 12. Bb5 {[%clk 0:02:28.1]} 12...
Be7 {[%clk 0:02:05.7]} 13. O-O {[%clk 0:02:27.7]} 13... Rc8 {[%clk 0:02:04.7]}
14. Qa4 {[%clk 0:02:24.7]} 14... Qb6 {[%clk 0:01:59.1]} 15. Bxf6 {[%clk
0:02:17.4]} 15... Bxf6 {[%clk 0:02:00]} 16. Nxd5 {[%clk 0:02:17.9]} 16... Bxd5
{[%clk 0:01:56.7]} 17. Rxd5 {[%clk 0:02:18.8]} 17... Bxb2 {[%clk 0:01:53.1]} 18.
Rb1 {[%clk 0:02:18.5]} 18... Bf6 {[%clk 0:01:51.2]} 19. h4 {[%clk 0:02:14.8]}
19... Rfd8 {[%clk 0:01:24.8]} 20. Rxd8+ {[%clk 0:02:03.6]} 20... Rxd8 {[%clk
0:01:24.5]} 21. Bd3 {[%clk 0:02:01.3]} 21... Qc7 {[%clk 0:01:14.1]} 22. Qe4
{[%clk 0:02:01.2]} 22... Qd7 {[%clk 0:01:01.2]} 23. Qh7+ {[%clk 0:01:55.7]}
23... Kf8 {[%clk 0:01:01.2]} 24. Be4 {[%clk 0:01:56.3]} 24... b6 {[%clk
0:00:47.6]} 25. Rc1 {[%clk 0:01:47.8]} 25... Ne5 {[%clk 0:00:47]} 26. Nd4 {[%clk
0:01:44]} 26... g6 {[%clk 0:00:24.8]} 27. h5 {[%clk 0:01:34.3]} 27... Qg4 {[%clk
0:00:20.2]} 28. hxg6 {[%clk 0:01:33.6]} 28... Nxg6 {[%clk 0:00:18.4]} 29. Bxg6
{[%clk 0:01:31.7]} 29... Qxg6 {[%clk 0:00:18.4]} 30. Qxg6 {[%clk 0:01:32.1]}
30... fxg6 {[%clk 0:00:19.3]} 31. Ne6+ {[%clk 0:01:32.6]} 1-0

[Event "Late-Titled-Tuesday-Blitz-December-26-2023"]
[Site "Chess.com"]
[Date "2023.12.26"]
[Round "4"]
[White "GMthekingindian"]
[Black "Skatchkov_V"]
[Result "0-1"]
[WhiteElo "2307"]
[BlackElo "2569"]
[TimeControl "180+1"]
[EndTime "14:37:40 PST"]
[Termination "Skatchkov_V won by resignation"]

1. e3 {[%clk 0:02:54.3]} 1... d5 {[%clk 0:02:56]} 2. b3 {[%clk 0:02:53.8]} 2...
Nf6 {[%clk 0:02:55.3]} 3. Bb2 {[%clk 0:02:54]} 3... g6 {[%clk 0:02:56]} 4. Nf3
{[%clk 0:02:52.5]} 4... Bg7 {[%clk 0:02:54.8]} 5. d4 {[%clk 0:02:47.1]} 5... O-O
{[%clk 0:02:54.4]} 6. Be2 {[%clk 0:02:47]} 6... b6 {[%clk 0:02:53.6]} 7. O-O
{[%clk 0:02:46.8]} 7... Bb7 {[%clk 0:02:52.8]} 8. c4 {[%clk 0:02:46.6]} 8... c5
{[%clk 0:02:49.4]} 9. dxc5 {[%clk 0:02:23.3]} 9... bxc5 {[%clk 0:02:47.2]} 10.
Nbd2 {[%clk 0:02:15.2]} 10... d4 {[%clk 0:02:41.9]} 11. exd4 {[%clk 0:02:09.5]}
11... Nh5 {[%clk 0:02:41.9]} 12. Ne5 {[%clk 0:02:04]} 12... cxd4 {[%clk
0:02:27.6]} 13. Bxh5 {[%clk 0:01:59.3]} 13... Bxe5 {[%clk 0:02:27.5]} 14. Bf3
{[%clk 0:01:58.4]} 14... Nc6 {[%clk 0:02:26.7]} 15. Bd5 {[%clk 0:01:34]} 15...
e6 {[%clk 0:02:21]} 16. Bxc6 {[%clk 0:01:29]} 16... Bxc6 {[%clk 0:02:20.9]} 17.
Nf3 {[%clk 0:01:29.7]} 17... Bxf3 {[%clk 0:02:21.4]} 18. Qxf3 {[%clk 0:01:30.3]}
18... Bg7 {[%clk 0:02:21.3]} 19. Qd3 {[%clk 0:01:13]} 19... e5 {[%clk
0:02:18.2]} 20. f4 {[%clk 0:01:12.9]} 20... f6 {[%clk 0:02:14.8]} 21. c5 {[%clk
0:01:03.7]} 21... Qd5 {[%clk 0:02:14.6]} 22. Rac1 {[%clk 0:00:59.7]} 22... Rac8
{[%clk 0:02:07.3]} 23. a4 {[%clk 0:00:42.9]} 23... Rxc5 {[%clk 0:02:00.2]} 24.
Rxc5 {[%clk 0:00:42]} 24... Qxc5 {[%clk 0:02:00.4]} 25. Rc1 {[%clk 0:00:36.4]}
25... Qd5 {[%clk 0:01:59.8]} 26. Ba3 {[%clk 0:00:26.5]} 26... Rb8 {[%clk
0:01:53.6]} 27. Qa6 {[%clk 0:00:12]} 27... Rb7 {[%clk 0:01:34.3]} 28. Rc8+
{[%clk 0:00:09.6]} 28... Kf7 {[%clk 0:01:34.5]} 29. Qa5 {[%clk 0:00:06.6]} 29...
Qxa5 {[%clk 0:01:34]} 0-1